[Event "EICC 2025"]
[Site "Eforie-Nord"]
[Date "2025.03.15"]
[Round "1.11"]
[White "Kantor, Gergely"]
[Black "Dumbelovic, Novak"]
[Result "1-0"]
[Annotator "ChessBase"]
[ECO "E49"]
[WhiteElo "2563"]
[BlackElo "2232"]
[PlyCount "117"]
[EventDate "2025.03.14"]
[EventType "swiss"]
[EventCountry "ROU"]
[SourceTitle "playchess.com"]
[Source "ChessBase"]
[SourceQuality "1"]
[TimeControl "40/5400+30:1800+30"]

1. d4 {[%emt 0:00:02]} Nf6 {[%emt 0:00:14]} 2. c4 {[%emt 0:00:05]} e6 {[%emt 0:00:08]} 3. Nc3 {[%emt 0:00:03]} Bb4 {[%emt 0:00:53]} 4. e3 {[%emt 0:00:05]} O-O {[%emt 0:00:31]} 5. a3 {[%emt 0:00:05]} Bxc3+ {[%emt 0:01:25]} 6. bxc3 {[%emt 0:00:04]} c5 {[%emt 0:00:54]} 7. Bd3 {[%emt 0:02:02]} d5 {[%emt 0:01:06]} 8. cxd5 {[%emt 0:00:57]} exd5 {[%emt 0:01:16]} 9. Ne2 {[%emt 0:01:36]} b6 {[%emt 0:00:49]} 10. O-O {[%emt 0:02:17]} Ba6 {[%emt 0:00:27]} 11. Bb2 {[%emt 0:02:29]} Re8 {[%emt 0:01:43]} 12. Ng3 {[%emt 0:02:17]} Qd7 {[%emt 0:03:42]} 13. Bf5 {[%emt 0:12:58]} Qc7 {[%emt 0:06:48]} 14. Re1 {[%emt 0:01:52]} Nbd7 {[%emt 0:03:04]} 15. f3 {[%emt 0:07:03]} h5 {[%emt 0:05:53]} 16. Qa4 {[%emt 0:08:54]} h4 {[%emt 0:03:52]} 17. Qxa6 {[%emt 0:04:38]} hxg3 {[%emt 0:00:49]} 18. hxg3 {[%emt 0:02:17]} Qxg3 {[%emt 0:00:32]} 19. Qe2 {[%emt 0:04:40]} g6 {[%emt 0:02:02]} 20. Bh3 {[%emt 0:02:14]} Re7 {[%emt 0:02:09]} 21. Qf2 {[%emt 0:01:00]} Qd6 {[%emt 0:04:42]} 22. Qh4 {[%emt 0:07:37]} Kg7 {[%emt 0:02:42]} 23. e4 {[%emt 0:04:00]} Rae8 {[%emt 0:56:19]} 24. e5 {[%emt 0:16:34]} Nxe5 {[%emt 0:00:00]} 25. dxe5 {[%emt 0:00:02]} Rxe5 {[%emt 0:00:00]} 26. Rxe5 {[%emt 0:03:43]} Qxe5 {[%emt 0:00:00]} 27. Rf1 {[%emt 0:00:54]} Nh5 {[%emt 0:00:00]} 28. f4 {[%emt 0:01:08]} Qe3+ {[%emt 0:00:00]} 29. Kh2 {[%emt 0:03:54]} Qd3 {[%emt 0:00:00]} 30. Re1 {[%emt 0:03:47]} Re2 {[%emt 0:00:00]} 31. Rxe2 {[%emt 0:01:42]} Qxe2 {[%emt 0:00:00]} 32. Bc1 {[%emt 0:00:15]} Qd1 {[%emt 0:00:00]} 33. Be3 {[%emt 0:00:23]} Qd3 {[%emt 0:00:00]} 34. Qe1 {[%emt 0:00:45]} Qe4 {[%emt 0:00:00]} 35. Qf2 {[%emt 0:02:11]} f5 {[%emt 0:00:00]} 36. Qf3 {[%emt 0:00:42]} Nf6 {[%emt 0:00:00]} 37. Bf2 {[%emt 0:00:55]} Qc2 {[%emt 0:00:00]} 38. Be1 {[%emt 0:01:39]} Ne4 {[%emt 0:00:00]} 39. Qe3 {[%emt 0:00:21]} Qd1 {[%emt 0:00:00]} 40. Bh4 {[%emt 0:01:28]} Qc2 {[%emt 0:00:00]} 41. Be1 {[%emt 0:08:14]} Qd1 {[%emt 0:00:00]} 42. g4 {[%emt 0:11:27]} d4 {[%emt 0:00:00]} 43. cxd4 {[%emt 0:00:27]} cxd4 {[%emt 0:00:00]} 44. Qg1 {[%emt 0:00:23]} Qe2+ {[%emt 0:00:00]} 45. Bg2 {[%emt 0:02:00]} Kf7 {[%emt 0:00:00]} 46. gxf5 {[%emt 0:02:30]} gxf5 {[%emt 0:00:00]} 47. Qf1 {[%emt 0:00:30]} Qc2 {[%emt 0:01:12]} 48. Qf3 {[%emt 0:01:09]} Kg6 {[%emt 0:09:06]} 49. Bb4 {[%emt 0:06:15]} d3 {[%emt 0:01:10]} 50. Qe3 {[%emt 0:00:58]} Nf6 {[%emt 0:12:38]} 51. Kh3 {[%emt 0:00:34]} a5 {[%emt 0:01:41]} 52. Be1 {[%emt 0:00:18]} Qc4 {[%emt 0:02:39]} 53. Bh4 {[%emt 0:01:51]} Qc3 {[%emt 0:03:22]} 54. Bf1 {[%emt 0:00:26]} Qc6 {[%emt 0:00:32]} 55. Bg2 {[%emt 0:00:23]} Qc3 {[%emt 0:00:01]} 56. a4 {[%emt 0:00:24]} Kf7 {[%emt 0:01:30]} 57. Bxf6 {[%emt 0:00:21]} Kxf6 {[%emt 0:01:20]} 58. Bf1 {[%emt 0:00:52]} Qc6 {[%emt 0:01:54]} 59. Bxd3 {[%emt 0:00:20]} 1-0

[Event "EICC 2025"]
[Site "Eforie-Nord"]
[Date "2025.03.15"]
[Round "1.11"]
[White "David, Alexandru-Vasile"]
[Black "Yuffa, Daniil"]
[Result "0-1"]
[Annotator "TA"]
[ECO "B67"]
[WhiteElo "2331"]
[BlackElo "2654"]
[PlyCount "80"]
[EventDate "2025.03.14"]
[EventType "swiss"]
[EventCountry "ROU"]
[SourceTitle "playchess.com"]
[Source "ChessBase"]
[SourceQuality "1"]
[TimeControl "40/5400+30:1800+30"]

{[%evp 16,80,35,38,40,2,23,0,27,0,25,0,19,-28,-25,-24,-20,-22,0,14,6,6,8,12,10,20,12,10,9,-26,0,-8,-12,-14,-13,-14,-8,-8,0,0,0,-29,-22,-19,-24,-29,0,-28,-20,-61,-75,-66,-46,-104,-55,-116,-113,-96,-62,-56,-58,-356,-345,-5265,-5246,-5389,-5297]} 1. e4 {[%emt 0:00:19]} c5 {[%emt 0:01:08]} 2. Nf3 {[%emt 0:00:23]} d6 {[%emt 0:00:07]} 3. d4 {[%emt 0:01:12]} cxd4 {[%emt 0:00:16]} 4. Nxd4 {[%emt 0:00:06]} Nf6 {[%emt 0:00:11]} 5. Nc3 {[%emt 0:00:07]} Nc6 {[%emt 0:01:55]} 6. Bg5 {[%emt 0:01:56]} a6 {[%emt 0:01:15]} 7. Qd2 {[%emt 0:01:15]} Bd7 {[%emt 0:01:18]} 8. O-O-O {[%emt 0:00:29]} e6 {[%emt 0:00:14]} 9. Kb1 {[%emt 0:01:50]} Be7 {[%emt 0:04:09] B67: Sicilian: Richter-Rauzer: 7...a6 8 0-0-0 Bd7, lines without 9 f4 Be7.} 10. Nxc6 {[%emt 0:00:39]} Bxc6 {[%emt 0:01:43]} 11. f3 {[%emt 0:00:39]} Qc7 {[%emt 0:06:44] The position is equal.} 12. Ne2 {[%emt 0:01:18]} Rc8 {[%emt 0:07:43][%cal Oc6e4]} 13. Be3 $146 {[%emt 0:05:46]} (13. c4 $5) (13. Nd4 Bxe4 14. fxe4 Nxe4 15. Qe3 Nxg5 16. h4 e5 17. hxg5 exd4 18. Qe4 d5 19. Qd3 Bxg5 20. Rxh7 Rxh7 21. Qxh7 {1-0 Melaa,S (2315)-Bacrot,E (2684) Titled Tuesday intern op 18th Jun Early blitz 2024 (2)}) 13... Bb5 {[%emt 0:07:03]} 14. Rc1 {[%emt 0:11:03]} (14. g4 $142) 14... d5 $11 {[%emt 0:05:50]} 15. e5 {[%emt 0:00:15]} Nd7 {[%emt 0:05:11]} 16. f4 {[%emt 0:02:12]} Nb6 {[%emt 0:03:48]} 17. Bxb6 {[%emt 0:11:19]} Qxb6 {[%emt 0:00:50]} 18. Nd4 {[%emt 0:00:07]} O-O {[%emt 0:06:38]} 19. c3 {[%emt 0:08:15]} Bc5 {[%emt 0:02:01]} 20. Bxb5 {[%emt 0:03:19] [#]} Bxd4 {[%emt 0:02:14]} 21. cxd4 {[%emt 0:00:27]} Qxb5 {[%emt 0:00:24]} 22. b3 {[%emt 0:05:05]} h5 {[%emt 0:07:21]} 23. g3 {[%emt 0:01:55]} a5 {[%emt 0:03:14]} 24. Rxc8 {[%emt 0:00:13]} Rxc8 {[%emt 0:00:04]} 25. Rc1 {[%emt 0:00:06]} Rxc1+ {[%emt 0:04:22]} 26. Kxc1 {[%emt 0:00:07][%mdl 4096] Endgame KQ-KQ} a4 {[%emt 0:00:28]} 27. Kb2 {[%emt 0:06:07]} Qa6 {[%emt 0:00:18]} 28. bxa4 {[%emt 0:01:31]} Qxa4 {[%emt 0:00:18]} 29. a3 {[%emt 0:02:14]} Qb5+ {[%emt 0:03:48]} 30. Kc2 $1 {[%emt 0:01:35]} Qa4+ {[%emt 0:02:04]} 31. Kb2 {[%emt 0:00:06]} Qc4 {[%emt 0:00:41]} 32. Qc3 {[%emt 0:02:00] [#] and Qxc4 should not be overlooked} Qe2+ {[%emt 0:01:04]} 33. Qc2 {[%emt 0:00:06]} Qe3 {[%emt 0:01:40]} 34. Qc8+ {[%emt 0:12:43]} Kh7 {[%emt 0:00:16]} 35. Qxb7 {[%emt 0:00:02]} (35. Qc3 $15 Qe2+ 36. Kb3 (36. Qc2+ Qxc2+ 37. Kxc2 Kg6 $17)) 35... Qxd4+ $17 {[%emt 0:00:20]} 36. Ka2 {[%emt 0:00:05]} Qd2+ {[%emt 0:08:24]} 37. Qb2 {[%emt 0:03:54]} Qe3 {[%emt 0:00:09]} ({Avoid the trap} 37... Qxb2+ $2 38. Kxb2 Kg6 39. a4 $18) 38. a4 $2 {[%emt 0:03:40][%mdl 8192]} (38. Qb7 $15) 38... d4 $19 {[%emt 0:00:40]} 39. a5 $2 {[%emt 0:00:05]} (39. Kb1) 39... d3 {[%emt 0:01:56] White must now prevent ...d2.} 40. a6 {[%emt 0:00:42]} d2 {[%emt 0:01:13] Weighted Error Value: White=0.45/Black=0.08 (flawless)   Loses game:     	White=1     	---        Mistake:       	White=3     	---        Inaccurate:     	White=5     	Black=5      OK:         	White=12    	Black=11     Best:        	White=2     	Black=3      Strong:       	White=1     	---} 0-1

[Event "EICC 2025"]
[Site "Eforie-Nord"]
[Date "2025.03.15"]
[Round "1.12"]
[White "Martirosyan, Haik M."]
[Black "Brunello, Marina"]
[Result "1-0"]
[Annotator "TA"]
[ECO "B12"]
[WhiteElo "2652"]
[BlackElo "2330"]
[PlyCount "61"]
[EventDate "2025.03.14"]
[EventType "swiss"]
[EventCountry "ROU"]
[SourceTitle "playchess.com"]
[Source "ChessBase"]
[SourceQuality "1"]
[TimeControl "40/5400+30:1800+30"]

{[%evp 14,61,13,0,0,18,31,11,47,35,72,54,103,114,108,96,103,100,106,101,111,97,102,102,102,102,102,102,203,186,210,191,165,181,311,319,354,357,493,466,735,704,947,932,1297,1294,1565,1519,1469,1453]} 1. e4 {[%emt 0:00:24]} c6 {[%emt 0:00:06]} 2. d4 {[%emt 0:00:41]} d5 {[%emt 0:00:22]} 3. e5 {[%emt 0:00:18]} Bf5 {[%emt 0:00:08]} 4. h4 {[%emt 0:00:44]} h5 {[%emt 0:00:28]} 5. c4 {[%emt 0:00:18]} dxc4 {[%emt 0:01:43]} 6. Bxc4 {[%emt 0:00:20]} e6 {[%emt 0:00:05]} 7. Nc3 {[%emt 0:00:29]} Nd7 {[%emt 0:05:16]} 8. Nge2 {[%emt 0:01:15]} Be7 {[%emt 0:00:20] B12: Caro-Kann: Advance Variation.} 9. g3 {[%emt 0:02:22] is the new trend.} b5 {[%emt 0:07:32]} 10. Bb3 {[%emt 0:06:23]} b4 {[%emt 0:00:07] The position is equal.} 11. Na4 {[%emt 0:01:36]} Nb6 $146 {[%emt 0:13:04]} (11... c5 12. Bf4 Nh6 13. O-O Qa5 14. Nxc5 Nxc5 15. dxc5 Rd8 16. Qc1 Bxc5 17. Bxh6 Rxh6 {½-½ Ter Sahakyan,S (2644)-Yoo,C (2583) Saint Louis Spring-A 2024 (8)}) 12. Nf4 {[%emt 0:10:55]} Bg4 {[%emt 0:04:10]} (12... Nh6 $14) 13. f3 $16 {[%emt 0:01:58]} Bf5 {[%emt 0:00:03]} 14. Be3 {[%emt 0:07:18]} Nd5 {[%emt 0:05:13]} 15. Bxd5 {[%emt 0:04:28]} cxd5 {[%emt 0:06:11]} 16. Rc1 {[%emt 0:00:35][%cal Ba1c1,Bc1c5,Bc5c7,Bc7d7][%mdl 32]} Rb8 {[%emt 0:03:45]} 17. Kf2 {[%emt 0:04:30]} Qa5 {[%emt 0:09:20]} 18. b3 {[%emt 0:04:25]} Qa6 {[%emt 0:00:29]} 19. Qd2 {[%emt 0:05:13]} Bd8 {[%emt 0:02:33]} 20. Rc5 {[%emt 0:02:13] White is more active.} Be7 {[%emt 0:00:22]} (20... Ne7 $16 21. Rg1 Kf8) 21. Rc7 $18 {[%emt 0:02:19]} Bd8 {[%emt 0:00:08]} 22. Nc5 {[%emt 0:01:36]} Qb6 {[%emt 0:04:30]} 23. Rd7 {[%emt 0:00:55]} Bc7 {[%emt 0:06:46]} (23... Ne7 $142 24. Ne2 Nc6) 24. Rc1 {[%emt 0:09:14][%cal Od7c7] And now Rxc7! would win.} Rc8 {[%emt 0:00:24]} 25. Nfd3 {[%emt 0:02:59]} Bxd3 {[%emt 0:02:03]} 26. Qxd3 {[%emt 0:00:24] White is clearly winning.} Ne7 {[%emt 0:00:06]} (26... Nh6 $142 27. Bg5 (27. Bxh6 Rxh6 28. f4 g6 $18) 27... O-O 28. Bxh6 gxh6) 27. Bg5 {[%emt 0:02:02]} Nc6 {[%emt 0:12:49] [#]} 28. Nxe6 $1 {[%emt 0:09:10][%cal Od3f5] Threatening mate with Qf5!.} Kxd7 {[%emt 0:00:15] [#]} (28... Bxe5 29. Rxc6) 29. Qf5 $1 {[%emt 0:00:17][%cal Re6g7]} Bxe5 {[%emt 0:01:45]} (29... Ne7 30. Nc5+) 30. Nc5+ {[%emt 0:07:42]} (30. Nxg7+ $2 {loses.} Kd6 31. Qxf7 Bxd4+ (31... Qxd4+ 32. Be3 $17) 32. Kg2 Bxg7 33. Qxg7 Rhf8 $19) 30... Kc7 {[%emt 0:00:03]} 31. Qxf7+ {[%emt 0:00:14] Black did not feel at home in the position after the opening.   Weighted Error Value: White=0.02 (flawless) /Black=1.06  Mistake:       	---       	Black=4      Inaccurate:     	---       	Black=4      OK:         	White=11    	Black=5      Best:        	White=3     	---} ({Weaker is} 31. dxe5 Kb8 $16) 1-0

[Event "EICC 2025"]
[Site "Eforie-Nord"]
[Date "2025.03.15"]
[Round "1.12"]
[White "Prisacaru, Stefan-Emilian"]
[Black "Can, Emre"]
[Result "1/2-1/2"]
[Annotator "ChessBase"]
[ECO "D38"]
[WhiteElo "2231"]
[BlackElo "2562"]
[PlyCount "98"]
[EventDate "2025.03.14"]
[EventType "swiss"]
[EventCountry "ROU"]
[SourceTitle "playchess.com"]
[Source "ChessBase"]
[SourceQuality "1"]
[TimeControl "40/5400+30:1800+30"]

1. d4 {[%emt 0:00:03]} d5 {[%emt 0:00:11]} 2. c4 {[%emt 0:00:09]} e6 {[%emt 0:00:10]} 3. Nf3 {[%emt 0:00:06]} Nf6 {[%emt 0:00:24]} 4. Nc3 {[%emt 0:00:06]} Bb4 {[%emt 0:00:27]} 5. cxd5 {[%emt 0:00:27]} exd5 {[%emt 0:00:08]} 6. Bg5 {[%emt 0:00:04]} h6 {[%emt 0:00:26]} 7. Bh4 {[%emt 0:00:07]} Bf5 {[%emt 0:00:18]} 8. Qa4+ {[%emt 0:20:19]} Nc6 {[%emt 0:00:15]} 9. Ne5 {[%emt 0:05:20]} O-O {[%emt 0:00:46]} 10. Nxc6 {[%emt 0:00:32]} Bxc3+ {[%emt 0:01:02]} 11. bxc3 {[%emt 0:00:06]} bxc6 {[%emt 0:00:05]} 12. e3 {[%emt 0:20:07]} Rb8 {[%emt 0:14:54]} 13. Qa3 {[%emt 0:18:30]} Qd6 {[%emt 0:08:44]} 14. Qxd6 {[%emt 0:05:09]} cxd6 {[%emt 0:00:12]} 15. Bxf6 {[%emt 0:00:05]} gxf6 {[%emt 0:00:07]} 16. c4 {[%emt 0:01:48]} Rb2 {[%emt 0:03:08]} 17. cxd5 {[%emt 0:01:45]} cxd5 {[%emt 0:00:13]} 18. Be2 {[%emt 0:15:30]} Rc8 {[%emt 0:07:47]} 19. Bd1 {[%emt 0:05:15]} Bd3 {[%emt 0:00:20]} 20. g4 {[%emt 0:01:55]} Rc3 {[%emt 0:03:06]} 21. a3 {[%emt 0:02:27]} Bc4 {[%emt 0:02:16]} 22. h4 {[%emt 0:01:00]} Kf8 {[%emt 0:08:44]} 23. Rh3 {[%emt 0:00:29]} Ke7 {[%emt 0:01:07]} 24. Rf3 {[%emt 0:00:08]} Bd3 {[%emt 0:00:33]} 25. Rf4 {[%emt 0:00:47]} Ke6 {[%emt 0:00:56]} 26. Rf3 {[%emt 0:00:42]} a5 {[%emt 0:02:09]} 27. Rf4 {[%emt 0:00:04]} Rc8 {[%emt 0:02:39]} 28. Rf3 {[%emt 0:00:32]} f5 {[%emt 0:07:08]} 29. Rg3 {[%emt 0:00:50]} Ke7 {[%emt 0:03:32]} 30. gxf5 {[%emt 0:00:32]} Bxf5 {[%emt 0:00:15]} 31. Bg4 {[%emt 0:00:30]} Bxg4 {[%emt 0:00:52]} 32. Rxg4 {[%emt 0:00:01]} a4 {[%emt 0:00:53]} 33. Rf4 {[%emt 0:00:39]} Ke6 {[%emt 0:00:39]} 34. Kf1 {[%emt 0:00:45]} Rc3 {[%emt 0:01:23]} 35. Rg4 {[%emt 0:00:34]} h5 {[%emt 0:02:16]} 36. Rg3 {[%emt 0:00:25]} f6 {[%emt 0:06:24]} 37. Kg2 {[%emt 0:00:34]} Kf7 {[%emt 0:02:05]} 38. Rf3 {[%emt 0:00:09]} Ke6 {[%emt 0:01:17]} 39. Rg3 {[%emt 0:00:01]} Rbb3 {[%emt 0:00:30]} 40. Rg7 {[%emt 0:01:01]} Rxa3 {[%emt 0:00:28]} 41. Rxa3 {[%emt 0:03:12]} Rxa3 {[%emt 0:00:00]} 42. Rh7 {[%emt 0:00:18]} Rb3 {[%emt 0:02:19]} 43. Ra7 {[%emt 0:05:47]} a3 {[%emt 0:00:11]} 44. Kf3 {[%emt 0:00:10]} Rc3 {[%emt 0:00:40]} 45. Kg3 {[%emt 0:04:58]} Kf5 {[%emt 0:02:18]} 46. Kf3 {[%emt 0:00:07]} Rb3 {[%emt 0:02:26]} 47. Ra5 {[%emt 0:01:05]} Ke6 {[%emt 0:00:48]} 48. Ra7 {[%emt 0:00:06]} Rc3 {[%emt 0:02:47]} 49. Kg3 {[%emt 0:00:10]} Rb3 {[%emt 0:00:21]} 1/2-1/2

[Event "EICC 2025"]
[Site "Eforie-Nord"]
[Date "2025.03.15"]
[Round "1.13"]
[White "Livaic, Leon"]
[Black "Bonte, Andrei-Mihai"]
[Result "1-0"]
[Annotator "ChessBase"]
[ECO "E11"]
[WhiteElo "2562"]
[BlackElo "2230"]
[PlyCount "65"]
[EventDate "2025.03.14"]
[EventType "swiss"]
[EventCountry "ROU"]
[SourceTitle "playchess.com"]
[Source "ChessBase"]
[SourceQuality "1"]
[TimeControl "40/5400+30:1800+30"]

1. d4 {[%emt 0:00:04]} e6 {[%emt 0:00:15]} 2. Nf3 {[%emt 0:00:21]} Nf6 {[%emt 0:00:21]} 3. c4 {[%emt 0:00:09]} d5 {[%emt 0:00:11]} 4. g3 {[%emt 0:00:27]} Bb4+ {[%emt 0:00:15]} 5. Bd2 {[%emt 0:00:08]} Be7 {[%emt 0:00:07]} 6. Bg2 {[%emt 0:00:09]} O-O {[%emt 0:00:12]} 7. Qc2 {[%emt 0:00:12]} b6 {[%emt 0:02:02]} 8. cxd5 {[%emt 0:02:12]} Nxd5 {[%emt 0:00:06]} 9. h4 {[%emt 0:06:35]} f5 {[%emt 0:16:16]} 10. g4 {[%emt 0:09:03]} Bb7 {[%emt 0:05:53]} 11. gxf5 {[%emt 0:02:59]} exf5 {[%emt 0:03:00]} 12. Ne5 {[%emt 0:03:40]} Nb4 {[%emt 0:09:54]} 13. Qb3+ {[%emt 0:01:54]} Bd5 {[%emt 0:00:25]} 14. Bxd5+ {[%emt 0:00:59]} Qxd5 {[%emt 0:00:14]} 15. Qxd5+ {[%emt 0:03:46]} Nxd5 {[%emt 0:00:04]} 16. Nc3 {[%emt 0:00:13]} Nxc3 {[%emt 0:05:08]} 17. Bxc3 {[%emt 0:00:24]} a5 {[%emt 0:09:43]} 18. O-O-O {[%emt 0:04:18]} Na6 {[%emt 0:00:17]} 19. a3 {[%emt 0:01:40]} Rae8 {[%emt 0:06:16]} 20. h5 {[%emt 0:14:10]} Nb8 {[%emt 0:00:39]} 21. Rhg1 {[%emt 0:09:05]} Bf6 {[%emt 0:03:58]} 22. f4 {[%emt 0:00:59]} Rd8 {[%emt 0:03:12]} 23. d5 {[%emt 0:03:32]} Nd7 {[%emt 0:05:17]} 24. Rg2 {[%emt 0:03:21]} Nc5 {[%emt 0:11:00]} 25. h6 {[%emt 0:06:26]} Ne4 {[%emt 0:05:56]} 26. Rxg7+ {[%emt 0:00:55]} Bxg7 {[%emt 0:00:07]} 27. Rg1 {[%emt 0:00:03]} Nxc3 {[%emt 0:00:17]} 28. Rxg7+ {[%emt 0:00:13]} Kh8 {[%emt 0:00:07]} 29. bxc3 {[%emt 0:00:04]} Rxd5 {[%emt 0:00:21]} 30. Nf7+ {[%emt 0:00:17]} Rxf7 {[%emt 0:00:08]} 31. Rxf7 {[%emt 0:00:02]} Kg8 {[%emt 0:00:22]} 32. Rg7+ {[%emt 0:00:27]} Kh8 {[%emt 0:07:17]} 33. Rxc7 {[%emt 0:00:30]} 1-0

[Event "EICC 2025"]
[Site "Eforie-Nord"]
[Date "2025.03.15"]
[Round "1.13"]
[White "Hnydiuk, Aleksander"]
[Black "Saric, Ivan"]
[Result "0-1"]
[Annotator "TA"]
[ECO "D02"]
[WhiteElo "2328"]
[BlackElo "2652"]
[PlyCount "86"]
[EventDate "2025.03.14"]
[EventType "swiss"]
[EventCountry "ROU"]
[SourceTitle "playchess.com"]
[Source "ChessBase"]
[SourceQuality "1"]
[TimeControl "40/5400+30:1800+30"]

{[%evp 9,86,22,16,30,47,37,42,28,36,27,45,47,51,56,129,128,109,147,131,120,105,127,210,111,136,136,167,133,112,3,58,18,46,26,51,76,50,0,0,-37,-37,-37,-37,-41,-39,-39,-41,-58,-49,-70,-75,-74,-75,-85,-78,-100,-95,-87,-70,-77,-71,-93,-85,-84,-102,-111,-107,-106,-106,-110,-105,-507,-394,-641,-652,-623,-636,-655,-636]} 1. Nf3 {[%emt 0:00:03]} d5 {[%emt 0:00:29]} 2. d4 {[%emt 0:00:05]} Nf6 {[%emt 0:00:09]} 3. Bf4 {[%emt 0:00:05]} c5 {[%emt 0:01:33]} 4. e3 {[%emt 0:00:05]} e6 {[%emt 0:00:43]} 5. Nbd2 {[%emt 0:02:11]} Qb6 {[%emt 0:01:13]} 6. Rb1 {D02: 1 d4 d5 2 Nf3 sidelines, including 2...Nf6 3 g3 and 2...Nf6 3 Bf4.} cxd4 {[%emt 0:01:18]} 7. exd4 {[%emt 0:05:43]} Bd7 {[%emt 0:00:08]} 8. c4 {[%emt 0:21:57] White is slightly better.} dxc4 {[%emt 0:03:34]} 9. Nxc4 {[%emt 0:02:07]} Bb4+ {[%emt 0:03:08]} 10. Bd2 {[%emt 0:00:25]} Bxd2+ {[%emt 0:00:09]} 11. Qxd2 {[%emt 0:00:05]} Qc7 $146 {[%emt 0:00:42] [#]} (11... Qc6 $1 $14 12. Rc1 O-O) ({Predecessor:} 11... Qa6 12. Bd3 O-O 13. O-O Rd8 14. Rfc1 Bb5 15. b3 Nc6 16. a4 Bxc4 17. bxc4 Qa5 18. Qxa5 Nxa5 {½-½ Ferre Perez,A (2101)-Palladino,M (2219) W-ch WS/M/771 email 2020}) 12. Qb4 $1 $16 {[%emt 0:07:24]} Nc6 {[%emt 0:02:03] [#]} 13. Qa3 {[%emt 0:04:53]} O-O-O {[%emt 0:15:06]} 14. Nd6+ {[%emt 0:03:20]} Kb8 {[%emt 0:00:22]} 15. Nxf7 {[%emt 0:01:02][%cal Of1e2]} e5 {[%emt 0:00:14][%cal Be6e5,Be5e4][%mdl 32]} 16. Nxd8 {[%emt 0:11:05]} (16. N7xe5 Nxd4 17. Nxd4 Qxe5+ 18. Ne2 Bf5 $15) (16. N3xe5 Nxe5 17. Nxe5 (17. dxe5 Bf5 $15) (17. Nxd8 Neg4 $17) 17... Be8 $14) (16. dxe5 $18 Rde8 17. Be2 (17. Nxh8 Nxe5 18. Be2 Nxf3+ 19. gxf3 Bb5 $16)) 16... Rxd8 {[%emt 0:08:41]} 17. Bb5 {[%emt 0:00:35]} e4 {[%emt 0:02:54]} 18. Bxc6 {[%emt 0:03:53]} exf3 {[%emt 0:07:45]} 19. Bxd7 {[%emt 0:06:18]} (19. Bxf3 $16 {aiming for 0-0.} Bb5 20. Qb3 Re8+ 21. Kd1) 19... fxg2 $11 {[%emt 0:00:37]} 20. Rg1 {[%emt 0:00:16]} Qxd7 {[%emt 0:00:11]} 21. Rxg2 {[%emt 0:04:13]} Qxd4 {[%emt 0:08:14] ( -> ...Qe4+)} 22. Kf1 $1 {[%emt 0:06:50]} (22. Rxg7 $2 Qe4+ 23. Kf1 Qxb1+ $19) 22... Nd5 {[%emt 0:02:51] Against Qc3} 23. Re1 {[%emt 0:02:49]} ({White should try} 23. Qf3 $1 $14) 23... Nf4 {[%emt 0:01:16]} 24. Qc3 {[%emt 0:13:54] Dodges Qc4+} Qxc3 {[%emt 0:04:26]} 25. bxc3 {[%emt 0:00:02]} Nxg2 {[%emt 0:00:05]} 26. Kxg2 $15 {[%emt 0:00:02][%mdl 4096] Endgame KR-KR} Kc7 {[%emt 0:10:02]} 27. Re7+ {[%emt 0:01:46]} Rd7 {[%emt 0:00:04]} 28. Re6 {[%emt 0:02:30]} Kd8 {[%emt 0:00:29]} 29. Kf3 {[%emt 0:00:46]} Rd5 {[%emt 0:03:20]} 30. Re4 {[%emt 0:00:28]} Rc5 {[%emt 0:00:41]} 31. c4 {[%emt 0:00:20]} Ra5 {[%emt 0:00:27]} 32. Re2 {[%emt 0:00:05]} Rh5 {[%emt 0:01:17]} 33. Kg3 {[%emt 0:00:26]} Rc5 {[%emt 0:00:06]} 34. Re4 {[%emt 0:00:11]} Ra5 {[%emt 0:00:06]} 35. Re2 {[%emt 0:00:36]} Ra4 {[%emt 0:03:29]} 36. Rc2 {[%emt 0:01:00]} Kd7 {[%emt 0:00:35]} 37. Kf3 {[%emt 0:00:40]} Kc6 {[%emt 0:01:12]} 38. Ke4 {[%emt 0:00:15]} Kc5 {[%emt 0:00:34]} 39. Ke5 {[%emt 0:00:44]} Rxc4 {[%emt 0:02:04] Black is more active.} 40. Rxc4+ {[%emt 0:00:45][%mdl 8192]} (40. Rd2 $17 {is tougher.}) 40... Kxc4 $19 {[%emt 0:00:05]} 41. f4 $2 {[%emt 0:17:54]} (41. Ke6 Kd3 42. a4) 41... b5 {[%emt 0:03:20] Black is clearly winning.} 42. f5 {[%emt 0:00:58]} b4 {[%emt 0:02:53] and ...a5 would now be decisive} 43. h4 {[%emt 0:02:45]} h5 {[%emt 0:01:23] What a bad dream for White.   Weighted Error Value: White=0.39/Black=0.04 (flawless)   Loses game:     	White=1     	---        Mistake:       	White=4     	Black=1      Inaccurate:     	White=1     	---        OK:         	White=7     	Black=15     Best:        	White=7     	Black=8      Strong:       	White=2     	---} 0-1